bitfinex/quotes_BTCUSD_20250714
["timestamp","ask_amount","ask_price","bid_price","bid_amount"]
[1752495147643,0.00028391,121640.0,121630.0,1.72017383]
[1752495147853,0.00028391,121640.0,121630.0,5.14922083]
[1752495148935,0.00028391,121640.0,121630.0,1.22867383]
[1752495149144,0.00028391,121640.0,121630.0,6.22867383]
[1752495149351,0.00028391,121640.0,121630.0,6.24321468]
[1752495151333,0.0002,121660.0,121650.0,0.26435843]
[1752495151545,0.0002,121660.0,121650.0,6.75679108]
[1752495151753,0.0002,121660.0,121650.0,6.76191108]
[1752495151991,0.0002,121660.0,121650.0,6.30927723]
[1752495152227,0.0002,121660.0,121650.0,6.44087723]
[1752495152503,0.002,121670.0,121660.0,0.21588373]
[1752495152726,0.00208393,121670.0,121660.0,4.6923752]
[1752495152958,0.00208393,121670.0,121660.0,4.71995063]
[1752495153410,0.00208393,121670.0,121660.0,6.13122848]
[1752495153867,0.00208393,121670.0,121660.0,6.15585348]
[1752495154090,0.00208393,121670.0,121660.0,2.59355463]
[1752495154312,0.00208393,121670.0,121660.0,5.22893548]
[1752495154539,0.00208393,121670.0,121660.0,2.44660763]
[1752495154759,0.00208393,121670.0,121660.0,1.79930263]
[1752495155017,0.00308393,121670.0,121660.0,2.12358048]
[1752495155226,0.00308393,121670.0,121660.0,2.25502048]
[1752495155444,0.00308393,121670.0,121660.0,4.99217448]
[1752495155653,0.00308393,121670.0,121660.0,5.0189951]
[1752495156084,0.00308393,121670.0,121660.0,4.5920661]
[1752495156582,0.00308393,121670.0,121660.0,4.8006481]
[1752495157170,0.00308393,121670.0,121660.0,4.6406451]
[1752495157372,0.00308393,121670.0,121660.0,5.2113511]
[1752495157583,0.00308393,121670.0,121660.0,4.9470031]
[1752495157995,0.00308393,121670.0,121660.0,4.8157231]
[1752495158181,0.00208393,121670.0,121660.0,4.8157231]
[1752495158381,0.00208393,121670.0,121660.0,6.0114621]
[1752495158772,0.0002,121680.0,121670.0,0.68050797]
[1752495158958,0.0002,121680.0,121670.0,4.81171662]
[1752495159234,0.0002,121680.0,121670.0,4.81468662]
[1752495159445,0.0002,121680.0,121670.0,6.26716362]
[1752495159654,0.0002,121680.0,121670.0,6.15298762]
[1752495160297,0.0002,121680.0,121670.0,6.02174762]
[1752495160511,0.0002,121680.0,121670.0,6.60129162]
[1752495160720,0.0002,121680.0,121670.0,6.60229162]
[1752495160933,0.0002,121680.0,121670.0,6.55303162]
[1752495161152,0.0002,121680.0,121670.0,6.45189147]
[1752495161603,0.0002,121680.0,121670.0,6.63156547]
[1752495162032,0.0002,121680.0,121670.0,6.50028547]
[1752495162469,0.002,121690.0,121680.0,0.27855265]
[1752495162714,0.0002,121720.0,121710.0,0.51661729]
[1752495162931,0.0002,121720.0,121710.0,6.70732787]
[1752495163170,0.00028394,121720.0,121710.0,6.73711849]
[1752495163391,0.00028394,121720.0,121710.0,6.60637449]
[1752495163613,0.03028394,121720.0,121710.0,1.35010302]
[1752495163827,0.03232394,121720.0,121710.0,1.55947187]
[1752495164161,0.00028394,121720.0,121710.0,1.50167752]
[1752495164365,0.03252394,121720.0,121710.0,1.54767349]
[1752495164578,0.03556394,121720.0,121710.0,1.54982349]
[1752495164796,0.39224179,121720.0,121710.0,0.04612444]
[1752495165013,0.08439407,121720.0,121710.0,0.001]
[1752495165266,0.07617897,121720.0,121710.0,0.001]
[1752495165504,0.07617897,121720.0,121710.0,0.15178851]
[1752495165758,0.063,121700.0,121680.0,0.49064339]
[1752495165959,0.06504,121690.0,121680.0,0.26414865]
[1752495166177,0.06809,121690.0,121680.0,0.42415698]
[1752495166389,0.06809,121690.0,121680.0,1.08839483]
[1752495167040,0.06909,121690.0,121680.0,1.08839483]
[1752495167256,0.06909,121690.0,121680.0,0.95715483]
[1752495167472,0.06809,121690.0,121680.0,1.08835483]
[1752495167702,0.06809,121690.0,121680.0,1.07606257]
[1752495167703,0.07309,121690.0,121680.0,1.07606257]
[1752495167969,0.07309,121690.0,121680.0,1.08835483]
[1752495168395,0.07309,121690.0,121680.0,1.07610257]
[1752495168580,0.07309,121690.0,121680.0,1.08839483]
[1752495168881,0.07309,121690.0,121680.0,1.07610257]
[1752495169130,0.07309,121690.0,121680.0,0.342]
[1752495169339,0.07309,121690.0,121680.0,0.54331214]
[1752495169559,0.07309,121690.0,121680.0,0.65629414]
[1752495169779,0.07309,121690.0,121680.0,0.54152994]
[1752495170023,0.07309,121690.0,121680.0,0.67280994]
[1752495170234,0.07309,121690.0,121680.0,0.93910108]
[1752495170456,0.07309,121690.0,121680.0,1.07038108]
[1752495171103,0.07309,121690.0,121680.0,1.07034108]
[1752495172069,0.07309,121690.0,121680.0,0.93910108]
[1752495172500,0.07309,121690.0,121680.0,1.07026108]
[1752495173176,0.07309,121690.0,121680.0,1.07018108]
[1752495173622,0.07309,121690.0,121680.0,0.62287705]
[1752495173840,0.07309,121690.0,121680.0,0.75395705]
[1752495174130,0.07309,121690.0,121680.0,0.74166479]
[1752495174379,0.07309,121690.0,121680.0,0.75387705]
[1752495174587,0.07309,121690.0,121680.0,0.62287705]
[1752495175040,0.07309,121690.0,121680.0,0.75387705]
[1752495175253,0.07309,121690.0,121680.0,1.07010108]
[1752495176118,0.00704,121690.0,121680.0,0.94125108]
[1752495176336,0.04179,121690.0,121680.0,0.62287705]
[1752495176553,0.03874,121690.0,121680.0,1.16406939]
[1752495176996,0.00704,121690.0,121680.0,1.16406939]
[1752495177208,0.00704,121690.0,121680.0,1.16398939]
[1752495177438,0.005,121690.0,121680.0,1.23075024]
[1752495177666,0.005,121690.0,121680.0,5.45162724]
[1752495177896,0.005,121690.0,121680.0,5.58242724]
[1752495178332,0.005,121690.0,121680.0,5.45162724]
[1752495178547,0.002,121710.0,121700.0,0.52898848]
[1752495178764,0.002,121710.0,121700.0,0.75553785]
[1752495178992,0.002,121710.0,121700.0,1.07176188]
[1752495179208,0.002,121710.0,121700.0,1.1015425]
[1752495181014,0.006,121710.0,121700.0,1.1015425]
[1752495182111,0.00803,121710.0,121700.0,1.0985825]
[1752495183453,0.006,121710.0,121700.0,1.03458335]
[1752495183670,0.006,121710.0,121700.0,1.16518335]
[1752495183894,0.006,121710.0,121700.0,1.16506335]
[1752495184118,0.002,121710.0,121700.0,1.16506335]
[1752495184335,0.002,121710.0,121700.0,1.16502335]
[1752495184595,0.005,121710.0,121700.0,1.16502335]
[1752495184780,0.005,121710.0,121700.0,1.24634069]
[1752495185034,0.005,121710.0,121700.0,1.16502335]
[1752495185580,0.005,121710.0,121700.0,1.13820273]
[1752495186487,0.005,121710.0,121700.0,1.00776273]
[1752495186699,0.005,121710.0,121700.0,1.13820273]
[1752495188370,0.005,121710.0,121700.0,1.13808273]
[1752495188580,0.005,121710.0,121700.0,1.13800273]
[1752495188794,0.005,121710.0,121700.0,1.00776273]
[1752495189006,0.005,121710.0,121700.0,2.3227872]
[1752495189223,0.005,121710.0,121700.0,2.60798632]
[1752495189449,0.005,121710.0,121700.0,2.81950366]
[1752495189656,0.005,121710.0,121700.0,2.30902482]
[1752495189870,0.005,121710.0,121700.0,2.76284332]
[1752495190080,0.005,121710.0,121700.0,6.58537332]
[1752495190289,0.005,121710.0,121700.0,6.45613332]
[1752495190496,0.002,121710.0,121700.0,6.58637332]
[1752495190919,0.002,121710.0,121700.0,6.26279482]
[1752495191135,0.002,121710.0,121700.0,4.95650382]
[1752495191350,0.002,121710.0,121700.0,5.28008232]
[1752495191570,0.002,121710.0,121700.0,4.51169332]
[1752495192039,0.002,121710.0,121700.0,1.8887202]
[1752495192230,0.002,121710.0,121700.0,1.9292232]
[1752495192449,0.002,121710.0,121700.0,1.95604382]
[1752495192883,0.002,121710.0,121700.0,2.02024382]
[1752495193100,0.002,121710.0,121700.0,3.35911282]
[1752495193345,0.002,121710.0,121700.0,2.70660382]
[1752495193785,0.002,121710.0,121700.0,3.36109382]
[1752495193997,0.002,121710.0,121700.0,2.84023532]
[1752495194270,0.00403,121710.0,121700.0,0.90643644]
[1752495194519,0.03733,121710.0,121700.0,1.23001494]
[1752495194792,0.03733,121710.0,121700.0,1.23201494]
[1752495194997,0.03733,121710.0,121700.0,1.23213494]
[1752495195217,0.03733,121710.0,121700.0,1.09989494]
[1752495195437,0.00603,121710.0,121700.0,1.2433872]
[1752495195658,0.00603,121710.0,121700.0,1.10089494]
[1752495195896,0.004,121710.0,121700.0,1.27316782]
[1752495196109,0.004,121710.0,121700.0,1.35448516]
[1752495196317,0.004,121710.0,121700.0,1.27316782]
[1752495196885,0.004,121710.0,121700.0,1.26087556]
[1752495197122,0.004,121710.0,121700.0,1.27316782]
[1752495197340,0.004,121710.0,121700.0,1.2463472]
[1752495197559,0.004,121710.0,121700.0,1.2463072]
[1752495197783,0.00603,121710.0,121700.0,1.2433472]
[1752495198011,0.00603,121710.0,121700.0,1.23105494]
[1752495198677,0.00603,121710.0,121700.0,1.2433472]
[1752495198898,0.00603,121710.0,121700.0,1.23105494]
[1752495199343,0.00603,121710.0,121700.0,1.2433072]
[1752495199580,0.07286,121710.0,121700.0,1.18250671]
[1752495199855,0.004,121710.0,121700.0,1.23908977]
[1752495201274,0.004,121710.0,121700.0,1.10896977]
[1752495201487,0.004,121710.0,121700.0,1.26591039]
[1752495201929,0.00603,121710.0,121700.0,1.12043813]
[1752495202137,0.03673,121710.0,121700.0,1.22373751]
[1752495202354,0.03996,121710.0,121700.0,1.23602977]
[1752495202623,0.03996,121710.0,121700.0,0.90015901]
[1752495202829,0.03673,121710.0,121700.0,1.22373751]
[1752495203298,0.03673,121710.0,121700.0,1.23602977]
[1752495203569,0.03996,121710.0,121700.0,1.09161751]
[1752495203775,0.07116,121710.0,121700.0,1.23402977]
[1752495204199,0.07116,121710.0,121700.0,1.43094977]
[1752495204635,0.07116,121710.0,121700.0,1.43294977]
[1752495205279,0.07116,121710.0,121700.0,1.42061751]
[1752495205493,0.03673,121710.0,121700.0,1.43290977]
[1752495205704,0.00603,121710.0,121700.0,1.43290977]
[1752495206136,0.00603,121710.0,121700.0,1.42061751]
[1752495206414,0.00603,121710.0,121700.0,1.43290977]
[1752495207051,0.06903,121710.0,121700.0,1.30082977]
[1752495207276,0.07226,121710.0,121700.0,1.41636892]
[1752495207544,0.07226,121710.0,121700.0,1.28628892]
[1752495207757,0.07226,121710.0,121700.0,1.41636892]
[1752495208206,0.07226,121710.0,121700.0,1.40407666]
[1752495208421,0.07226,121710.0,121700.0,1.41636892]
[1752495209535,0.07226,121710.0,121700.0,1.41640892]
[1752495211279,0.07226,121710.0,121700.0,1.31637892]
[1752495211511,0.07226,121710.0,121700.0,1.77673592]
[1752495212155,0.07226,121710.0,121700.0,1.45315742]
[1752495212369,0.07226,121710.0,121700.0,1.63382492]
[1752495214093,0.07226,121710.0,121700.0,1.58912492]
[1752495215833,0.07226,121710.0,121700.0,1.45900492]
[1752495216048,0.07226,121710.0,121700.0,1.58884492]
[1752495217038,0.07226,121710.0,121700.0,1.59084492]
[1752495220811,0.07226,121710.0,121700.0,1.54462692]
[1752495221014,0.07226,121710.0,121700.0,1.53233466]
[1752495221228,0.07226,121710.0,121700.0,1.54462692]
[1752495221679,0.07226,121710.0,121700.0,1.53233466]
[1752495221889,0.07226,121710.0,121700.0,1.613652]
[1752495222124,0.07226,121710.0,121700.0,1.54462692]
[1752495222999,0.07226,121710.0,121700.0,1.53233466]
[1752495223308,0.07226,121710.0,121700.0,1.54462692]
[1752495223746,0.03773,121710.0,121700.0,1.41490692]
[1752495223966,0.03773,121710.0,121700.0,1.54446692]
[1752495224848,0.03773,121710.0,121700.0,1.31781892]
[1752495225031,0.03773,121710.0,121700.0,1.96315392]
[1752495225257,0.03773,121710.0,121700.0,1.87294166]
[1752495225502,0.03773,121710.0,121700.0,1.82257492]
[1752495225721,0.03773,121710.0,121700.0,1.69301492]
[1752495225967,0.03773,121710.0,121700.0,1.82253492]
[1752495226632,0.03773,121710.0,121700.0,1.68072266]
[1752495226850,0.03773,121710.0,121700.0,1.82253492]
[1752495228379,0.03773,121710.0,121700.0,1.62561492]
[1752495228806,0.03773,121710.0,121700.0,1.48380266]
[1752495229018,0.03773,121710.0,121700.0,1.62561492]
[1752495230071,0.03773,121710.0,121700.0,1.61332266]
[1752495230281,0.03773,121710.0,121700.0,1.62561492]
[1752495230994,0.0278816,121710.0,121700.0,1.62561492]
[1752495231212,0.0278816,121710.0,121700.0,1.62871492]
[1752495231618,0.03651394,121720.0,121710.0,0.20126522]
[1752495231847,0.03847394,121720.0,121710.0,0.65432372]
[1752495232557,0.03847394,121720.0,121710.0,0.52484372]
[1752495232786,0.03847394,121720.0,121710.0,0.64199146]
[1752495232918,0.04147394,121720.0,121710.0,0.65428372]
[1752495234119,0.07217394,121720.0,121710.0,0.65428372]
[1752495234954,0.07217394,121720.0,121710.0,0.65424372]
[1752495238997,0.07217394,121720.0,121710.0,0.65416372]
[1752495239618,0.07217394,121720.0,121710.0,0.64187146]
[1752495239849,0.07217394,121720.0,121710.0,0.65416372]
[1752495241409,0.07217394,121720.0,121710.0,0.5333599]
[1752495241628,0.07217394,121720.0,121710.0,0.65412372]
[1752495242758,0.07217394,121720.0,121710.0,0.64183146]
[1752495242975,0.07217394,121720.0,121710.0,0.65412372]
[1752495243991,0.07217394,121720.0,121710.0,0.33054522]
[1752495244212,0.06894394,121720.0,121710.0,0.65412372]
[1752495244439,0.06894394,121720.0,121710.0,0.73544106]
[1752495244679,0.06894394,121720.0,121710.0,0.65412372]
[1752495245777,0.06894394,121720.0,121710.0,0.64183146]
[1752495246047,0.06894394,121720.0,121710.0,0.65412372]
[1752495246399,0.06894394,121720.0,121710.0,0.33054522]
[1752495246608,0.06894394,121720.0,121710.0,0.65412372]
[1752495247412,0.06894394,121720.0,121710.0,0.33054522]
[1752495247629,0.06894394,121720.0,121710.0,0.64163146]
[1752495248067,0.06894394,121720.0,121710.0,0.65392372]
[1752495248285,0.06894394,121720.0,121710.0,0.31805296]
[1752495248499,0.06894394,121720.0,121710.0,0.33034522]
[1752495248719,0.06894394,121720.0,121710.0,0.65392372]
[1752495248951,0.06894394,121720.0,121710.0,0.64163146]
[1752495249630,0.06894394,121720.0,121710.0,0.65392372]
[1752495249883,0.06894394,121720.0,121710.0,0.64163146]
[1752495250107,0.06894394,121720.0,121710.0,0.65392372]
[1752495250561,0.06894394,121720.0,121710.0,0.64163146]
[1752495251035,0.0165289,121720.0,121710.0,0.17661729]
[1752495251267,0.0625,121710.0,121700.0,0.38590835]
[1752495251508,0.06753,121710.0,121700.0,0.85907603]
[1752495251727,0.07610575,121710.0,121700.0,1.18682377]
[1752495251960,0.07610575,121710.0,121700.0,0.85911603]
[1752495252196,0.07610575,121710.0,121700.0,1.19911603]
[1752495252420,0.07610575,121710.0,121700.0,1.20011603]
[1752495252648,0.07710575,121710.0,121700.0,1.05870377]
[1752495252889,0.07710575,121710.0,121700.0,1.20015603]
[1752495253114,0.07710575,121710.0,121700.0,1.20011603]
[1752495253380,0.07710575,121710.0,121700.0,0.87653753]
[1752495253604,0.07710575,121710.0,121700.0,1.20011603]
[1752495253827,0.08532139,121710.0,121700.0,1.20011603]
[1752495254053,0.08532139,121710.0,121700.0,1.18782377]
[1752495254266,0.08532139,121710.0,121700.0,1.20011603]
[1752495254842,0.08532139,121710.0,121700.0,0.73512527]
[1752495255092,0.2578628,121710.0,121700.0,0.21021226]
[1752495255539,0.2578628,121710.0,121700.0,0.33933226]
[1752495255728,0.24964689,121710.0,121700.0,0.33933226]
[1752495255983,0.24964689,121710.0,121700.0,0.21021226]
[1752495256225,0.24964689,121710.0,121700.0,0.32612]
[1752495256870,0.24964689,121710.0,121700.0,0.33841226]
[1752495257308,0.24864689,121710.0,121700.0,0.33841226]
[1752495257551,0.25164689,121710.0,121700.0,0.33841226]
[1752495258659,0.25164689,121710.0,121700.0,0.39197554]
[1752495258908,0.25164689,121710.0,121700.0,0.37968328]
[1752495259121,0.25164689,121710.0,121700.0,0.39197554]
[1752495259351,0.25164689,121710.0,121700.0,0.37968328]
[1752495259564,0.25164689,121710.0,121700.0,0.39197554]
[1752495260009,0.25164689,121710.0,121700.0,0.33841226]
[1752495261204,0.25164689,121710.0,121700.0,0.20921226]
[1752495261512,0.6565725,121710.0,121700.0,0.19692]
[1752495261764,0.6565725,121710.0,121700.0,0.326]
[1752495262267,0.332994,121710.0,121700.0,0.326]
[1752495263338,0.332994,121710.0,121700.0,0.19692]
[1752495263571,0.332994,121710.0,121700.0,0.35986923]
[1752495263754,0.332994,121710.0,121700.0,0.16294923]
[1752495264195,0.332994,121710.0,121700.0,0.03382923]
[1752495264404,0.332994,121710.0,121700.0,0.16294923]
[1752495264618,0.332994,121710.0,121700.0,0.12912]
[1752495265909,0.332994,121710.0,121690.0,0.33587076]
[1752495265910,0.22763853,121700.0,121690.0,0.33587076]
[1752495266125,0.24112545,121700.0,121690.0,0.4608361]
[1752495266357,0.24112545,121700.0,121690.0,0.47312836]
[1752495266572,0.24112545,121700.0,121690.0,0.53984698]
[1752495266988,0.24112545,121700.0,121690.0,0.21626848]
[1752495267199,0.25134217,121700.0,121690.0,0.71241655]
[1752495267407,0.25955882,121700.0,121690.0,0.70419902]
[1752495267637,0.25955882,121700.0,121690.0,0.71241655]
[1752495267855,0.25955882,121700.0,121690.0,0.53162938]
[1752495268073,0.25134217,121700.0,121690.0,0.53162938]
[1752495268287,0.25134217,121700.0,121690.0,0.53984698]
[1752495268503,0.25134217,121700.0,121690.0,0.71241655]
[1752495268739,0.25134217,121700.0,121690.0,0.70419902]
[1752495269462,0.25134217,121700.0,121690.0,0.68368916]
[1752495269634,0.25134217,121700.0,121690.0,0.51933712]
[1752495269855,0.25134217,121700.0,121690.0,0.53162938]
[1752495270048,0.25134217,121700.0,121690.0,0.46491076]
[1752495270420,0.25134217,121700.0,121690.0,0.47312836]
[1752495271106,0.25134217,121700.0,121690.0,0.46491076]
[1752495271309,0.25134217,121700.0,121690.0,0.47312836]
[1752495271729,0.25134217,121700.0,121690.0,0.53162935]
[1752495272373,0.25134217,121700.0,121690.0,0.06671859]
[1752495272608,0.24312545,121700.0,121690.0,0.46487076]
[1752495273681,0.24312545,121700.0,121690.0,0.33587076]
[1752495274128,0.24312545,121700.0,121690.0,0.3235785]
[1752495274367,0.01643458,121690.0,121680.0,0.87814698]
[1752495274591,0.01858445,121690.0,121680.0,0.88022698]
[1752495274818,0.02680191,121690.0,121680.0,1.00922698]
[1752495275042,0.06631965,121690.0,121680.0,0.99279131]
[1752495275280,0.09120205,121690.0,121680.0,1.00100931]
[1752495275729,0.09941965,121690.0,121680.0,0.99796938]
[1752495275964,0.26377169,121690.0,121680.0,0.82994285]
[1752495276186,0.26377169,121690.0,121680.0,0.99588945]
[1752495276467,0.09120205,121690.0,121680.0,1.01232525]
[1752495276675,0.09120205,121690.0,121680.0,1.01232478]
[1752495276902,0.04166706,121690.0,121680.0,1.01744478]
[1752495277121,0.05810151,121690.0,121680.0,1.01744478]
[1752495277563,0.04988425,121690.0,121680.0,1.01744478]
[1752495277822,0.05810158,121690.0,121680.0,1.01744478]
[1752495278003,0.06010158,121690.0,121680.0,1.01744478]
[1752495278676,0.04366726,121690.0,121680.0,1.01744478]
[1752495278891,0.05188432,121690.0,121680.0,1.01744478]
[1752495279317,0.06010165,121690.0,121680.0,1.01744478]
[1752495279529,0.06010165,121690.0,121680.0,0.69386628]
[1752495279737,0.05188432,121690.0,121680.0,0.69386628]
[1752495279951,0.05188432,121690.0,121680.0,1.01744478]
[1752495285024,0.06010171,121690.0,121680.0,1.01744478]
[1752495285719,0.05188432,121690.0,121680.0,1.01744478]
[1752495286362,0.02058432,121690.0,121680.0,1.01744478]
[1752495286821,0.01236706,121690.0,121680.0,1.01744478]
[1752495287028,0.02058432,121690.0,121680.0,1.26087548]
[1752495287235,0.01236706,121690.0,121680.0,1.17955814]
[1752495287474,0.02058418,121690.0,121680.0,1.17955814]
[1752495287692,0.02880144,121690.0,121680.0,1.17955814]
[1752495287915,0.03701883,121690.0,121680.0,1.05055814]
[1752495288174,0.03701883,121690.0,121680.0,1.17955814]
[1752495288398,0.04523636,121690.0,121680.0,1.16312247]
[1752495288618,0.06721883,121690.0,121680.0,1.17955814]
[1752495288842,0.07543636,121690.0,121680.0,1.16312247]
[1752495289063,0.06721883,121690.0,121680.0,1.17134034]
[1752495289308,0.02880144,121690.0,121680.0,1.17955814]
[1752495289758,0.02880137,121690.0,121680.0,1.17955814]
[1752495290149,0.02880137,121690.0,121680.0,0.69386628]
[1752495290378,0.02880137,121690.0,121680.0,1.16726588]
[1752495290600,0.02880137,121690.0,121680.0,1.17955814]
[1752495292098,0.0370187,121690.0,121680.0,1.17955814]
[1752495292341,0.02880137,121690.0,121680.0,1.17955814]
[1752495293115,0.02892534,121690.0,121680.0,1.17955814]
[1752495293336,0.0371426,121690.0,121680.0,1.17955814]
[1752495293520,0.02892534,121690.0,121680.0,1.17955814]
[1752495294201,0.03701863,121690.0,121680.0,1.17943417]
[1752495295023,0.03701863,121690.0,121680.0,0.67730651]
[1752495295238,0.03701863,121690.0,121680.0,1.15070611]
[1752495295377,0.03701863,121690.0,121680.0,0.67730651]
[1752495295601,0.03701863,121690.0,121680.0,1.15070611]
[1752495295839,0.03701863,121690.0,121680.0,1.16299837]
[1752495296260,0.02880137,121690.0,121680.0,1.16299837]
[1752495296459,0.0370187,121690.0,121680.0,1.16299837]
[1752495296880,0.04523616,121690.0,121680.0,1.16299844]
[1752495297082,0.0370187,121690.0,121680.0,1.17121624]
[1752495297337,0.0370187,121690.0,121680.0,1.16299844]
[1752495297663,0.02880137,121690.0,121680.0,1.17121624]
[1752495297871,0.00415,121690.0,121680.0,1.04221624]
[1752495298087,0.01843405,121690.0,121680.0,1.17117624]
[1752495298512,0.01021699,121690.0,121680.0,1.17117624]
[1752495298730,0.01843411,121690.0,121680.0,1.17117624]
[1752495299156,0.01843411,121690.0,121680.0,1.15888398]
[1752495299372,0.01843411,121690.0,121680.0,1.17117624]
[1752495299647,0.01843411,121690.0,121680.0,1.15474091]
[1752495299857,0.02665137,121690.0,121680.0,1.17117671]
[1752495300073,0.01843411,121690.0,121680.0,1.17117671]
[1752495301173,0.04308643,121690.0,121680.0,1.14652396]
[1752495301403,0.02665144,121690.0,121680.0,1.1711777]
[1752495301620,0.02665144,121690.0,121680.0,1.15888544]
[1752495301834,0.02665144,121690.0,121680.0,1.1711777]
[1752495302064,0.03700883,121690.0,121680.0,1.15474203]
[1752495302273,0.05277411,121690.0,121680.0,1.17117783]
[1752495302923,0.04455699,121690.0,121680.0,1.04221783]
[1752495303135,0.01235699,121690.0,121680.0,1.04221783]
[1752495303384,0.01021699,121690.0,121680.0,1.17117783]
[1752495303604,0.01843411,121690.0,121680.0,1.17117783]
[1752495305110,0.01843411,121690.0,121680.0,1.15888557]
[1752495305341,0.01843411,121690.0,121680.0,1.17117783]
[1752495305843,0.01843405,121690.0,121680.0,1.17117783]
[1752495306092,0.002,121690.0,121680.0,0.8293018]
[1752495306337,0.01021712,121690.0,121680.0,0.8293018]
[1752495306554,0.01021712,121690.0,121680.0,0.81700954]
[1752495306987,0.01021706,121690.0,121680.0,0.8293018]
[1752495307299,0.01843425,121690.0,121680.0,0.34360994]
[1752495307510,0.01021706,121690.0,121680.0,0.8293018]
[1752495307919,0.002,121690.0,121680.0,0.7003418]
[1752495308121,0.002,121690.0,121680.0,0.8293018]
[1752495308339,0.01021699,121690.0,121680.0,0.8293018]
[1752495308545,0.01021699,121690.0,121680.0,0.34360994]
[1752495308762,0.01021699,121690.0,121680.0,0.8293018]
[1752495309955,0.01843411,121690.0,121680.0,0.8293018]
[1752495310385,0.01843405,121690.0,121680.0,0.8293018]
[1752495310596,0.01843405,121690.0,121680.0,0.81700954]
[1752495311054,0.01843405,121690.0,121680.0,0.34360994]
[1752495311284,0.01021699,121690.0,121680.0,0.8293018]
[1752495311738,0.01021699,121690.0,121680.0,0.81700954]
[1752495311961,0.01021699,121690.0,121680.0,0.8293018]
[1752495312176,0.01843411,121690.0,121680.0,0.8293018]
[1752495312439,0.01021699,121690.0,121680.0,0.8293018]
[1752495312652,0.01021699,121690.0,121680.0,0.34360994]
[1752495312884,0.01843411,121690.0,121680.0,0.8293018]
[1752495313739,0.01843411,121690.0,121680.0,0.81700954]
[1752495313927,0.01843411,121690.0,121680.0,0.8293018]
[1752495314441,0.01843411,121690.0,121680.0,0.81700954]
[1752495314653,0.01843411,121690.0,121680.0,0.8293018]
[1752495315200,0.02665137,121690.0,121680.0,0.8293018]
[1752495315615,0.01843411,121690.0,121680.0,0.8293018]
[1752495315853,0.02665137,121690.0,121680.0,0.8293018]
[1752495317702,0.03486876,121690.0,121680.0,0.8293018]
[1752495317907,0.01843411,121690.0,121680.0,0.8293018]
[1752495318130,0.02665137,121690.0,121680.0,0.8293018]
[1752495318338,0.0266513,121690.0,121680.0,0.8292618]
[1752495318559,0.0266513,121690.0,121680.0,0.81696954]
[1752495318791,0.0266513,121690.0,121680.0,0.8292618]
[1752495320288,0.0266513,121690.0,121680.0,0.34356994]
[1752495320491,0.0266513,121690.0,121680.0,0.8292618]
[1752495320825,0.03486863,121690.0,121680.0,0.8292618]
[1752495321462,0.04308609,121690.0,121680.0,0.34357001]
[1752495321680,0.03486863,121690.0,121680.0,0.35178787]
[1752495321899,0.03486863,121690.0,121680.0,0.83747973]
[1752495323091,0.04308609,121690.0,121680.0,0.83747973]
[1752495323352,0.04308609,121690.0,121680.0,0.8374798]
[1752495323584,0.04308609,121690.0,121680.0,0.83747933]
[1752495323823,0.04308602,121690.0,121680.0,0.83747933]
[1752495324015,0.04308602,121690.0,121680.0,1.16518707]
[1752495324248,0.04308602,121690.0,121680.0,1.17747933]
[1752495325934,0.04308602,121690.0,121680.0,0.67127741]
[1752495326174,0.03486903,121690.0,121680.0,1.17747933]
[1752495326810,0.01843431,121690.0,121680.0,1.17743933]
[1752495327403,0.02665164,121690.0,121680.0,1.17743933]
[1752495328810,0.002,121690.0,121680.0,1.04855933]
[1752495329028,0.01021712,121690.0,121680.0,1.17743933]
[1752495329459,0.01021712,121690.0,121680.0,1.25875667]
[1752495329679,0.01021712,121690.0,121680.0,1.35430526]
[1752495329680,0.002,121690.0,121680.0,1.35430526]
[1752495329898,0.002,121690.0,121680.0,3.08023543]
[1752495330083,0.01021699,121690.0,121680.0,6.46275064]
[1752495330342,0.002,121690.0,121680.0,1.22390353]
[1752495332409,0.002,121690.0,121680.0,1.09502353]
[1752495332627,0.002,121690.0,121680.0,1.22390353]
[1752495333250,0.002,121690.0,121680.0,1.46674946]
[1752495333498,0.002,121690.0,121680.0,1.46670946]
[1752495333708,0.002,121690.0,121680.0,1.4544172]
[1752495333932,0.002,121690.0,121680.0,1.46670946]
[1752495334161,0.002,121690.0,121680.0,1.4544172]
[1752495334383,0.002,121690.0,121680.0,1.46670946]
[1752495339351,0.002,121690.0,121680.0,1.4544172]
[1752495339557,0.002,121690.0,121680.0,1.46670946]
[1752495339774,0.002,121690.0,121680.0,1.4544172]
[1752495339993,0.002,121690.0,121680.0,1.46670946]
[1752495340867,0.002,121690.0,121680.0,1.33786946]
[1752495341080,0.002,121690.0,121680.0,1.22382353]
[1752495342353,0.00395,121690.0,121680.0,0.82777186]
[1752495342555,0.08061712,121690.0,121680.0,0.74721147]
[1752495342914,0.26140388,121690.0,121680.0,0.97500239]
[1752495343152,0.26140388,121690.0,121680.0,0.72393819]
[1752495343357,0.26140388,121690.0,121680.0,0.896522]
[1752495343565,0.09705184,121690.0,121680.0,1.0270042]
[1752495343768,0.09705184,121690.0,121680.0,1.15580427]
[1752495343979,0.09705184,121690.0,121680.0,1.16402234]
[1752495344162,0.09705184,121690.0,121680.0,1.17224034]
[1752495344390,0.09705184,121690.0,121680.0,1.17224]
[1752495344605,0.08588431,121690.0,121680.0,1.0434396]
[1752495344831,0.04526699,121690.0,121680.0,1.1742396]
[1752495345043,0.002,121690.0,121680.0,1.0484996]
[1752495345367,0.002,121690.0,121680.0,1.1772996]
[1752495345770,0.002,121690.0,121680.0,1.0484996]
[1752495345990,0.002,121690.0,121680.0,1.35184553]
[1752495346213,0.002,121690.0,121680.0,1.48064553]
[1752495347806,0.002,121690.0,121680.0,1.35184553]
[1752495348236,0.002,121690.0,121680.0,1.48060553]
[1752495349144,0.002,121690.0,121680.0,1.3994321]
[1752495350247,0.002,121690.0,121680.0,1.2706721]
[1752495350722,0.002,121690.0,121680.0,1.3994321]
[1752495351957,0.002,121690.0,121680.0,1.2706721]
[1752495352145,0.002,121690.0,121680.0,1.3994321]
[1752495352713,0.002,121690.0,121680.0,1.2706721]
[1752495352935,0.002,121690.0,121680.0,1.3994321]
[1752495353797,0.002,121690.0,121680.0,1.3389321]
[1752495354006,0.002,121690.0,121680.0,0.56280774]
[1752495354212,0.002,121690.0,121680.0,1.2101721]
[1752495354426,0.002,121690.0,121680.0,1.3389321]
[1752495355392,0.01843418,121690.0,121680.0,0.91848992]
[1752495355607,0.01843418,121690.0,121680.0,1.01520992]
[1752495355824,0.01843411,121690.0,121680.0,1.01520992]
[1752495356389,0.01021699,121690.0,121680.0,1.01520992]